fUSD/lending_fUSD_20260423
["ID","MTS","AMOUNT","RATE_DAILY","PERIOD"]
[421025703,1776944586991,-300.0,8.494e-05,2]
[421025704,1776944587018,-300.0,8.494e-05,2]
[421025705,1776944587043,-300.0,9.041e-05,2]
[421025706,1776944587068,-193.0,9.041e-05,2]
[421025707,1776944587095,-480.0,9.283e-05,2]
[421025708,1776944587121,-420.0,9.283e-05,2]
[421025709,1776944587146,-160.0,9.805e-05,2]
[421025710,1776944587171,-162.24421151,9.805e-05,2]
[421025711,1776944587195,-11312.97596328,9.905e-05,2]
[421025712,1776944587222,-587.0,0.00010211,2]
[421025713,1776944587301,250.0,9.041e-05,2]
[421025714,1776944617558,36861.46886507,0.00010211,2]
[421025715,1776944634551,1682.85287809,0.00010211,2]
[421025716,1776944646641,1084.0,0.00010211,3]
[421025717,1776944647779,19935.434746,7.945e-05,2]
[421025718,1776944651173,156.0,0.00010211,3]
[421025719,1776944658865,200.0,9.3e-05,2]
[421025720,1776944675133,9819.15,9.805e-05,2]
[421025749,1776945033972,-280.0,8.219e-05,2]
[421025750,1776945033982,-300.0,9.041e-05,2]
[421025751,1776945033992,-250.0,9.041e-05,2]
[421025752,1776945034001,-174.0,9.805e-05,3]
[421025753,1776945034011,-1030.0,9.805e-05,3]
[421025754,1776945034020,-156.0,9.805e-05,3]
[421025755,1776945034030,-150.0,0.00010011,2]
[421025756,1776945034039,-150.00000001,0.00010011,2]
[421025757,1776945034049,-185.91,0.00010277,2]
[421025758,1776945034058,-454.51916261,0.00010446,2]
[421025759,1776945034068,-201.12491993,0.00010546,2]
[421025760,1776945034087,-37.89508007,0.00010546,2]
[421025761,1776945034097,-160.0,0.00010603,2]
[421025762,1776945034106,-1200.0,0.00010621,2]
[421025763,1776945034116,-300.0,0.00010622,2]
[421025764,1776945034125,-300.0,0.00010622,2]
[421025765,1776945034135,-150.0,0.000107,2]
[421025766,1776945034144,-549.38892162,0.0001072,2]
[421025767,1776945034154,-3040.965,0.00010721,2]
[421025768,1776945034163,-220.618,0.00010721,2]
[421025769,1776945034173,-454.51916261,0.00010748,2]
[421025770,1776945034182,-745.0,0.000108,2]
[421025771,1776945034192,-307.0,0.000108,2]
[421025772,1776945034202,-150.0,0.00010856,2]
[421025773,1776945034211,-500.0,0.00010857,2]
[421025774,1776945034221,-500.0,0.00010857,2]
[421025775,1776945034231,-500.0,0.00010857,2]
[421025776,1776945034241,-366.38683773,0.00010857,2]
[421025777,1776945034250,-150.0,0.00010857,2]
[421025778,1776945034260,-500.0,0.00010857,2]
[421025779,1776945034270,-500.0,0.00010857,2]
[421025780,1776945034280,-150.0,0.00010857,2]
[421025781,1776945034290,-431.99505678,0.00010857,2]
[421025782,1776945034299,-150.0,0.00010857,2]
[421025783,1776945034309,-262.95744375,0.00010857,2]
[421025784,1776945034319,-150.0,0.00010857,2]
[421025785,1776945034329,-150.0,0.00010857,2]
[421025786,1776945034339,-150.0,0.00010857,2]
[421025787,1776945034349,-150.0,0.00010857,2]
[421025788,1776945034358,-150.0,0.00010857,2]
[421025789,1776945034368,-250.0,0.00010857,2]
[421025790,1776945034378,-1000.0,0.000109,2]
[421025791,1776945034387,-10000.0,0.000109,2]
[421025792,1776945034396,-1200.0,0.00010959,2]
[421025793,1776945034406,-1200.0,0.00010959,2]
[421025794,1776945034415,-1200.0,0.00010959,2]
[421025795,1776945034424,-1200.0,0.00010959,2]
[421025796,1776945034434,-1200.0,0.00010959,2]
[421025797,1776945034445,-1200.0,0.00010959,2]
[421025798,1776945034455,-1200.0,0.00010959,2]
[421025799,1776945034464,-1200.0,0.00010959,2]
[421025800,1776945034473,-500.0,0.00010959,2]
[421025801,1776945034482,-2500.0,0.00011032,2]
[421025802,1776945034492,-454.51916261,0.0001105,2]
[421025803,1776945034502,-1201.937919,0.0001105,2]
[421025804,1776945034511,-200.0,0.00011125,2]
[421025805,1776945034523,-151.0,0.00011125,2]
[421025806,1776945034533,-151.0,0.00011125,2]
[421025807,1776945034543,-151.0,0.00011125,2]
[421025808,1776945034553,-151.0,0.00011125,2]
[421025809,1776945034563,-151.0,0.00011125,2]
[421025810,1776945034572,-151.0,0.00011125,2]
[421025811,1776945034582,-151.0,0.00011125,2]
[421025812,1776945034593,-151.0,0.00011125,2]
[421025813,1776945034603,-151.0,0.00011125,2]
[421025814,1776945034613,-151.0,0.00011125,2]
[421025815,1776945034623,-151.0,0.00011125,2]
[421025816,1776945034632,-151.0,0.00011125,2]
[421025817,1776945034642,-151.0,0.00011125,2]
[421025818,1776945034652,-168.53942598,0.00011125,2]
[421025819,1776945034663,-151.0,0.00011125,2]
[421025820,1776945034674,-151.0,0.00011125,2]
[421025821,1776945034684,-151.0,0.00011125,2]
[421025822,1776945034694,-151.0,0.00011125,2]
[421025823,1776945034704,-151.0,0.00011125,2]
[421025824,1776945034715,-151.0,0.00011125,2]
[421025825,1776945034727,-151.0,0.00011125,2]
[421025826,1776945034737,-151.0,0.00011125,2]
[421025827,1776945034747,-151.0,0.00011125,2]
[421025828,1776945034757,-151.0,0.00011125,2]
[421025829,1776945034767,-151.0,0.00011125,2]
[421025830,1776945034777,-151.0,0.00011125,2]
[421025831,1776945034786,-500.0,0.00011131,2]
[421025832,1776945034796,-500.0,0.00011131,2]
[421025833,1776945034805,-500.0,0.00011131,2]
[421025834,1776945034815,-500.0,0.00011131,2]
[421025835,1776945034824,-500.0,0.00011131,2]
[421025836,1776945034834,-500.0,0.00011131,2]
[421025837,1776945034843,-500.0,0.00011131,2]
[421025838,1776945034854,-500.0,0.00011131,2]
[421025839,1776945034864,-500.0,0.00011131,2]
[421025840,1776945034874,-431.23809539,0.00011131,2]
[421025841,1776945034883,-500.0,0.00011131,2]
[421025842,1776945034893,-574.39301213,0.00011131,2]
[421025843,1776945034902,-500.0,0.00011131,2]
[421025844,1776945034911,-150.0,0.00011131,2]
[421025845,1776945034921,-150.0,0.00011131,2]
[421025846,1776945034931,-150.0,0.00011131,2]
[421025847,1776945034941,-150.0,0.00011131,2]
[421025848,1776945034950,-150.0,0.00011131,2]
[421025849,1776945034960,-150.0,0.00011131,2]
[421025850,1776945034969,-150.0,0.00011131,2]
[421025851,1776945034979,-150.0,0.00011131,2]
[421025852,1776945034988,-150.0,0.00011131,2]
[421025853,1776945034998,-150.0,0.00011131,2]
[421025854,1776945035007,-150.0,0.00011131,2]
[421025855,1776945035017,-150.0,0.00011131,2]
[421025856,1776945035027,-150.0,0.00011131,2]
[421025857,1776945035037,-300.0,0.00011131,2]
[421025858,1776945035047,-300.0,0.00011131,2]
[421025859,1776945035056,-666.0,0.00011131,2]
[421025860,1776945035066,-200.0,0.00011132,2]
[421025861,1776945035076,-891.0,0.00011132,5]
[421025862,1776945035085,-12535.23557989,0.00011132,2]
[421025863,1776945035103,-882.31924771,0.00011132,2]
[421025864,1776945035115,-3331.0,0.00011132,2]
[421025865,1776945035131,-1705.55759253,0.00011132,2]
[421025866,1776945035411,-491.5847794,0.00011132,2]
[421025867,1776945035430,-2174.50212326,0.00011132,2]
[421025868,1776945035443,-482.0,0.00011132,2]
[421025875,1776945038026,-162.24421151,0.00010691,2]
[421025876,1776945038037,-605.29630963,0.00011132,2]
[421025877,1776945038081,-1290.08569442,0.00011132,2]
[421025878,1776945038094,-14728.450932,0.00011132,2]
[421025879,1776945038136,-352.59170386,0.00011132,2]
[421025880,1776945038295,-75666.30854802,0.00011132,2]
[421025881,1776945038308,-372.73608226,0.00011132,2]
[421025882,1776945038319,-3460.0,0.00011132,2]
[421025900,1776945040622,-161692.78343843,0.00011132,2]
[421025901,1776945040637,-808.0336,0.00011132,2]
[421025917,1776945046931,-316.220239,0.00011132,2]
[421025918,1776945047092,-327.365286,0.00011132,2]
[421025919,1776945047149,-344.0,0.00011132,2]
[421025920,1776945047257,-3843.89820875,0.00011132,2]
[421025924,1776945047370,-7138.78012012,0.00011132,2]
[421025925,1776945047746,-8689.62569086,0.00011132,2]
[421025926,1776945047758,-14035.45352238,0.00011132,2]
[421026042,1776946232048,-280.0,8.219e-05,2]
[421026043,1776946232058,-1448.70844309,8.22e-05,2]
[421026044,1776946232135,-640.66368595,8.22e-05,2]
[421026045,1776946232144,-500.0,8.22e-05,2]
[421026046,1776946232153,-250.0,8.221e-05,2]
[421026047,1776946232163,-300.0,8.222e-05,2]
[421026048,1776946232172,-300.0,8.238e-05,2]
[421026049,1776946232182,-271.95713437,8.238e-05,2]
[421026050,1776946232191,-500.0,8.388e-05,2]
[421026051,1776946232201,-150.0,9.04e-05,2]
[421026052,1776946232210,-1149.19668987,9.04e-05,2]
[421026053,1776946232240,-50.80331013,9.04e-05,2]
[421026054,1776946232250,-193.0,9.041e-05,2]
[421026055,1776946232259,-91.50668987,9.041e-05,2]
[421026056,1776946232270,-208.49331013,9.041e-05,2]
[421026057,1776946232279,-300.0,9.041e-05,2]
[421026058,1776946232289,-250.0,9.041e-05,2]
[421026059,1776946232298,-193.0,9.041e-05,2]
[421026060,1776946232307,-98.50668987,9.041e-05,2]
[421026071,1776946238173,-310.57999992,9.041e-05,2]
[421026072,1776946238189,-400.0,9.041e-05,2]
[421026073,1776946238230,-1503.17647077,9.041e-05,2]
[421026074,1776946238244,-2687.73683944,9.041e-05,2]
[421026075,1776946238253,-500.0,9.041e-05,2]
[421026076,1776946238262,-250.0,9.041e-05,2]
[421026077,1776946238272,-188.43,9.871e-05,2]
[421026078,1776946238282,-230.2547,9.9e-05,2]
[421026079,1776946238292,-150.00000001,9.912e-05,2]
[421026080,1776946238302,-150.0,9.912e-05,2]
[421026081,1776946238312,-150.0,9.912e-05,2]
[421026082,1776946238322,-211.26673769,9.912e-05,2]
[421026083,1776946238331,-153.95685762,9.912e-05,2]
[421026084,1776946238341,-150.0,9.912e-05,2]
[421026085,1776946238351,-150.0,9.912e-05,2]
[421026086,1776946238360,-150.0,9.912e-05,2]
[421026087,1776946238372,-255.0,9.944e-05,2]
[421026091,1776946238963,-1680.0,9.944e-05,2]
[421026092,1776946238983,-150.0,0.00010279,2]
[421026093,1776946238992,-150.0,0.00010463,2]
[421026094,1776946239002,-150.0,0.00010583,2]
[421026095,1776946239011,-150.0,0.00010583,2]
[421026096,1776946239021,-158.23650103,0.00010583,2]
[421026097,1776946239030,-500.0,0.00010583,2]
[421026098,1776946239044,-500.0,0.00010583,2]
[421026099,1776946239054,-500.0,0.00010583,2]
[421026100,1776946239063,-500.0,0.00010583,2]
[421026101,1776946239072,-500.0,0.00010583,2]
[421026102,1776946239082,-500.0,0.00010583,2]
[421026103,1776946239091,-500.0,0.00010583,2]
[421026104,1776946239100,-500.0,0.00010583,2]
[421026105,1776946239110,-500.0,0.00010583,2]
[421026106,1776946239120,-500.0,0.00010583,2]
[421026107,1776946239130,-500.0,0.00010583,2]
[421026108,1776946239139,-500.0,0.00010583,2]
[421026109,1776946239149,-500.0,0.00010583,2]
[421026110,1776946239159,-413.56929621,0.00010583,2]
[421026111,1776946239181,-86.43070379,0.00010583,2]
[421026112,1776946239190,-239.01789719,0.00010583,2]
[421026113,1776946239344,-354.3953352,0.00010583,2]
[421026114,1776946239361,-3.4016461,0.00010583,2]
[421026115,1776946239372,-1744.9607,0.000106,2]
[421026116,1776946239383,-2500.0,0.000106,2]
[421026117,1776946239393,-150.0,0.00010647,2]
[421026118,1776946239403,-151.0,0.00010684,2]
[421026119,1776946239414,-12512.39702724,0.0001069,3]
[421026120,1776946239424,-3625.07418024,0.0001069,2]
[421026121,1776946240648,-1374.91581976,0.0001069,2]
[421026122,1776946240658,-499.99,0.0001069,2]
[421026123,1776946240668,-215.50315682,0.0001069,2]
[421026144,1776946245729,-9784.48684318,0.0001069,2]
[421026145,1776946245740,-299.99,0.0001069,2]
[421026146,1776946245750,-519.07,0.0001069,2]
[421026147,1776946245761,-150.99,0.0001069,2]
[421026148,1776946245771,-925.27967367,0.0001069,2]
[421026157,1776946246156,-506.57964,0.0001069,2]
[421026180,1776946246422,-2792.4705,0.0001069,2]
[421026181,1776946246479,-299.11968399,0.0001069,2]
[421026196,1776946696151,531.6653139,0.000165,120]
[421026543,1776947432245,-1200.0,8.219e-05,2]
[421026544,1776947432255,-300.0,8.219e-05,2]
[421026545,1776947432264,-280.0,8.219e-05,2]
[421026546,1776947432274,-250.0,8.219e-05,2]
[421026547,1776947432283,-300.0,8.22e-05,2]
[421026548,1776947432293,-5000.0,8.22e-05,2]
[421026549,1776947432303,-5000.0,8.22e-05,2]
[421026550,1776947432312,-250.0,8.22e-05,2]
[421026551,1776947432321,-500.0,8.221e-05,2]
[421026552,1776947432331,-300.0,8.222e-05,2]
[421026553,1776947432341,-300.0,8.222e-05,2]
[421026554,1776947432351,-5000.0,8.222e-05,2]
[421026555,1776947432360,-500.0,8.228e-05,2]
[421026556,1776947432369,-351.57966066,8.228e-05,2]
[421026557,1776947432379,-150.0,8.449e-05,2]
[421026571,1776947432872,-999.99,8.45e-05,2]
[421026572,1776947432912,-22500.62,8.45e-05,2]
[421026573,1776947432922,-9999.99,8.45e-05,2]
[421026574,1776947432931,-2748.33,8.45e-05,2]
[421026575,1776947432940,-230.2547,9e-05,2]
[421026576,1776947432950,-1680.0,9.04e-05,2]
[421026577,1776947432959,-300.0,9.041e-05,2]
[421026578,1776947432968,-500.0,9.041e-05,2]
[421026579,1776947432978,-5000.0,9.041e-05,2]
[421026580,1776947432987,-300.0,9.041e-05,2]
[421026581,1776947432996,-5000.0,9.041e-05,2]
[421026582,1776947433005,-500.0,9.041e-05,2]
[421026583,1776947433014,-250.0,9.041e-05,2]
[421026584,1776947433024,-474.0,9.224e-05,2]
[421026585,1776947433033,-293.45842719,9.238e-05,2]
[421026586,1776947433042,-474.0,9.277e-05,2]
[421026587,1776947433051,-255.0,9.294e-05,2]
[421026588,1776947433060,-221.69,9.3e-05,2]
[421026589,1776947433069,-474.0,9.301e-05,2]
[421026590,1776947433078,-474.0,9.325e-05,2]
[421026591,1776947433087,-474.0,9.334e-05,2]
[421026592,1776947433096,-474.0,9.348e-05,2]
[421026593,1776947433106,-474.0,9.427e-05,2]
[421026594,1776947433115,-474.0,9.445e-05,2]
[421026595,1776947433124,-150.0,9.518e-05,2]
[421026596,1776947433133,-150.0,9.518e-05,2]
[421026597,1776947433142,-150.0,9.518e-05,2]
[421026598,1776947433151,-153.95685762,9.518e-05,2]
[421026599,1776947433160,-211.26673769,9.518e-05,2]
[421026600,1776947433169,-150.0,9.518e-05,2]
[421026601,1776947433178,-150.0,9.518e-05,2]
[421026602,1776947433187,-150.0,9.518e-05,2]
[421026603,1776947433196,-150.0,9.518e-05,2]
[421026604,1776947433205,-150.0,9.518e-05,2]
[421026605,1776947433214,-500.0,9.518e-05,2]
[421026606,1776947433223,-150.0,9.669e-05,2]
[421026607,1776947433232,-176.29,9.778e-05,2]
[421026608,1776947433242,-150.0,9.782e-05,2]
[421026609,1776947433253,-150.0,9.782e-05,2]
[421026610,1776947433263,-500.0,9.792e-05,2]
[421026611,1776947433272,-150.0,9.82e-05,2]
[421026612,1776947433281,-2160.0,9.944e-05,2]
[421026613,1776947433290,-150.0,9.971e-05,2]
[421026614,1776947433299,-226.66,0.00010025,2]
[421026615,1776947433307,-150.0,0.00010047,2]
[421026616,1776947433316,-150.0,0.00010047,2]
[421026617,1776947433325,-150.0,0.00010047,2]
[421026618,1776947433335,-150.0,0.00010047,2]
[421026619,1776947433344,-500.0,0.00010066,2]
[421026620,1776947433353,-150.0,0.00010122,2]
[421026621,1776947433362,-433.0,0.00010223,2]
[421026622,1776947433371,-150.0,0.00010273,2]
[421026623,1776947433380,-150.0,0.00010311,2]
[421026624,1776947433389,-150.0,0.00010311,2]
[421026625,1776947433398,-500.0,0.0001034,2]
[421026626,1776947433407,-1594.01502791,0.000104,2]
[421026627,1776947433416,-3883.66201317,0.000104,2]
[421026628,1776947433425,-3511.27076172,0.000104,2]
[421026629,1776947433435,-4256.05326471,0.000104,2]
[421026630,1776947433444,-3872.91326644,0.000104,2]
[421026631,1776947433453,-150.0,0.00010424,2]
[421026632,1776947433463,-153.84497306,0.0001049,2]
[421026633,1776947433472,-5000.0,0.0001049,2]
[421026634,1776947433481,-33086.6184,0.0001049,2]
[421026635,1776947433490,-2000.0,0.0001049,2]
[421026636,1776947433499,-2500.0,0.0001049,2]
[421026637,1776947433508,-151.0,0.00010533,2]
[421026638,1776947433517,-376.87,0.00010547,2]
[421026639,1776947433526,-150.0,0.00010575,2]
[421026640,1776947433535,-280.90970038,0.00010575,2]
[421026641,1776947433544,-297.75503325,0.00010575,2]
[421026642,1776947433554,-239.87337831,0.00010575,2]
[421026643,1776947433563,-289.80723727,0.00010575,2]
[421026644,1776947433572,-775.2585,0.00010575,2]
[421026645,1776947433582,-150.00000001,0.00010575,2]
[421026646,1776947433591,-363.93,0.00010583,2]
[421026647,1776947433600,-500.0,0.00010583,2]
[421026648,1776947433609,-500.0,0.00010583,2]
[421026649,1776947433618,-500.0,0.00010583,2]
[421026650,1776947433627,-500.0,0.00010583,2]
[421026651,1776947433635,-500.0,0.00010583,2]
[421026652,1776947433644,-500.0,0.00010583,2]
[421026653,1776947433653,-500.0,0.00010583,2]
[421026654,1776947433662,-500.0,0.00010583,2]
[421026655,1776947433672,-500.0,0.00010583,2]
[421026656,1776947433682,-500.0,0.00010583,2]
[421026657,1776947433692,-500.0,0.00010583,2]
[421026658,1776947433704,-500.0,0.00010583,2]
[421026659,1776947433713,-500.0,0.00010583,2]
[421026660,1776947433722,-413.56929621,0.00010583,2]
[421026661,1776947433731,-500.0,0.00010587,2]
[421026662,1776947433740,-500.0,0.00010587,2]
[421026663,1776947433750,-500.0,0.00010587,2]
[421026664,1776947433759,-500.0,0.00010587,2]
[421026665,1776947433768,-1455.53697041,0.00010587,2]
[421026666,1776947433777,-1455.53697041,0.00010587,2]
[421026667,1776947433786,-1455.53697041,0.00010587,2]
[421026668,1776947433795,-1455.53697041,0.00010587,2]
[421026669,1776947433805,-1455.53697041,0.00010587,2]
[421026670,1776947433814,-1455.53697041,0.00010587,2]
[421026671,1776947433825,-1455.53697041,0.00010587,2]
[421026672,1776947433837,-1455.53697041,0.00010587,2]
[421026673,1776947433846,-1455.53697041,0.00010587,2]
[421026674,1776947433856,-1455.53697041,0.00010587,2]
[421026675,1776947433865,-1455.53697041,0.00010587,2]
[421026676,1776947433875,-1455.53697041,0.00010587,2]
[421026677,1776947433883,-1093.8672339,0.00010588,3]
[421026678,1776947433893,-500.0,0.00010588,2]
[421026679,1776947433902,-500.0,0.00010588,2]
[421026680,1776947433912,-500.0,0.00010588,2]
[421026681,1776947433921,-500.0,0.00010588,2]
[421026682,1776947433930,-500.0,0.00010588,2]
[421026683,1776947433939,-500.0,0.00010588,2]
[421026684,1776947433949,-500.0,0.00010588,2]
[421026685,1776947433958,-500.0,0.00010588,2]
[421026686,1776947433967,-500.0,0.00010588,2]
[421026687,1776947433977,-500.0,0.00010588,2]
[421026688,1776947433986,-500.0,0.00010588,2]
[421026689,1776947433996,-500.0,0.00010588,2]
[421026690,1776947434005,-520.75785995,0.00010588,2]
[421026691,1776947434014,-500.0,0.00010588,2]
[421026692,1776947434023,-500.0,0.00010588,2]
[421026693,1776947434032,-500.0,0.00010588,2]
[421026694,1776947434042,-500.0,0.00010588,2]
[421026695,1776947434051,-500.0,0.00010588,2]
[421026696,1776947434060,-500.0,0.00010588,2]
[421026697,1776947434069,-500.0,0.00010588,2]
[421026698,1776947434079,-500.0,0.00010588,2]
[421026699,1776947434088,-500.0,0.00010588,2]
[421026700,1776947434097,-500.0,0.00010588,2]
[421026701,1776947434106,-500.0,0.00010588,2]
[421026702,1776947434115,-500.0,0.00010588,2]
[421026703,1776947434124,-500.0,0.00010588,2]
[421026704,1776947434133,-500.0,0.00010588,2]
[421026705,1776947434142,-500.0,0.00010588,2]
[421026706,1776947434152,-500.0,0.00010588,2]
[421026707,1776947434161,-500.0,0.00010588,2]
[421026708,1776947434170,-500.0,0.00010588,2]
[421026709,1776947434179,-500.0,0.00010588,2]
[421026710,1776947434188,-500.0,0.00010588,2]
[421026711,1776947434198,-500.0,0.00010588,2]
[421026712,1776947434207,-500.0,0.00010588,2]
[421026713,1776947434216,-500.0,0.00010588,2]
[421026714,1776947434225,-500.0,0.00010588,2]
[421026715,1776947434235,-500.0,0.00010588,2]
[421026716,1776947434245,-500.0,0.00010588,2]
[421026717,1776947434254,-500.0,0.00010588,2]
[421026718,1776947434263,-500.0,0.00010588,2]
[421026719,1776947434272,-500.0,0.00010588,2]
[421026720,1776947434282,-500.0,0.00010588,2]
[421026721,1776947434291,-500.0,0.00010588,2]
[421026722,1776947434300,-500.0,0.00010588,2]
[421026723,1776947434310,-500.0,0.00010588,2]
[421026724,1776947434320,-500.0,0.00010588,2]
[421026725,1776947434329,-500.0,0.00010588,2]
[421026726,1776947434339,-500.0,0.00010588,2]
[421026727,1776947434348,-500.0,0.00010588,2]
[421026728,1776947434358,-500.0,0.00010588,2]
[421026729,1776947434367,-500.0,0.00010588,2]
[421026730,1776947434376,-500.0,0.00010588,2]
[421026731,1776947434385,-107.15436558,0.00010588,2]
[421026732,1776947436124,-392.84563442,0.00010588,2]
[421026733,1776947436135,-500.0,0.00010588,2]
[421026734,1776947436144,-500.0,0.00010588,2]
[421026735,1776947436153,-500.0,0.00010588,2]
[421026736,1776947436162,-500.0,0.00010588,2]
[421026737,1776947436171,-500.0,0.00010588,2]
[421026738,1776947436180,-500.0,0.00010588,2]
[421026739,1776947436189,-500.0,0.00010588,2]
[421026740,1776947436198,-150.0,0.00010588,2]
[421026741,1776947436208,-500.0,0.00010588,2]
[421026742,1776947436217,-500.0,0.00010588,2]
[421026743,1776947436226,-500.0,0.00010588,2]
[421026744,1776947436235,-500.0,0.00010588,2]
[421026745,1776947436244,-500.0,0.00010588,2]
[421026746,1776947436254,-500.0,0.00010588,2]
[421026747,1776947436263,-500.0,0.00010588,2]
[421026748,1776947436273,-500.0,0.00010588,2]
[421026749,1776947436282,-500.0,0.00010588,2]
[421026750,1776947436292,-500.0,0.00010588,2]
[421026751,1776947436303,-500.0,0.00010588,2]
[421026752,1776947436313,-500.0,0.00010588,2]
[421026753,1776947436324,-150.0,0.00010589,2]
[421026754,1776947436334,-200.0,0.00010589,2]
[421026755,1776947436343,-174.08643365,0.00010589,2]
[421026756,1776947436352,-500.0,0.00010589,2]
[421026757,1776947436361,-500.0,0.00010589,2]
[421026758,1776947436370,-500.0,0.00010589,2]
[421026759,1776947436380,-500.0,0.00010589,2]
[421026760,1776947436389,-500.0,0.00010589,2]
[421026761,1776947436398,-500.0,0.00010589,2]
[421026762,1776947436407,-233.32198115,0.00010589,2]
[421026763,1776947436416,-500.0,0.00010589,2]
[421026764,1776947436425,-316.85274685,0.00010589,2]
[421026765,1776947436435,-150.0,0.00010589,2]
[421026766,1776947436443,-24564.4516746,0.0001059,2]
[421026767,1776947436484,-266.38014877,0.0001059,2]
[421026768,1776947436504,-817.71660486,0.0001059,2]
[421026769,1776947436515,-534.06656813,0.0001059,2]
[421026770,1776947436527,-268.0,0.0001059,2]
[421026775,1776947438459,-1620.0,0.0001059,2]
[421026776,1776947438471,-22516.27518324,0.0001059,2]
[421026777,1776947438482,-43734.57276482,0.0001059,2]
[421026778,1776947438493,-829.67010334,0.0001059,2]
[421026779,1776947438504,-745.46632711,0.0001059,2]
[421026780,1776947438675,-357.74400034,0.0001059,2]
[421026791,1776947440657,-80259.64856989,0.0001059,2]
[421026792,1776947440669,-36659.33004994,0.0001059,2]
[421026793,1776947440714,-967.12115627,0.0001059,2]
[421026811,1776947443343,-541.39864331,0.00010349,2]
[421026812,1776947443449,-1932.60135669,0.00010349,2]
[421026813,1776947443458,-8344.69366213,0.0001059,2]
[421026814,1776947443470,-810.70186814,0.0001059,2]
[421026815,1776947443482,-1579.0,0.0001059,2]
[421026817,1776947445370,-1425.82817633,0.0001059,2]
[421026850,1776947447896,-994.30618172,0.0001059,2]
[421026851,1776947447913,-2022.61147718,0.0001059,2]
[421026862,1776948631440,-262.0,7.988e-05,2]
[421026863,1776948631450,-300.0,7.988e-05,2]
[421026864,1776948631460,-134.09491183,7.988e-05,2]
[421026865,1776948631471,-318.138866,7.988e-05,2]
[421026866,1776948631482,-301.93962579,7.988e-05,2]
[421026867,1776948631553,-445.82659638,7.988e-05,2]
[421026868,1776948631564,-93.61038256,7.989e-05,2]
[421026869,1776948631604,-4927.04300694,7.989e-05,2]
[421026870,1776948631614,-150.0,7.989e-05,2]
[421026871,1776948631626,-150.0,7.989e-05,2]
[421026872,1776948631636,-150.0,7.989e-05,2]
[421026873,1776948631645,-150.0,7.989e-05,2]
[421026874,1776948631655,-150.0,7.989e-05,2]
[421026875,1776948631664,-150.0,7.989e-05,2]
[421026876,1776948631673,-150.0,7.989e-05,2]
[421026877,1776948631682,-150.0,7.989e-05,2]
[421026878,1776948631692,-250.0,8.063e-05,2]
[421026879,1776948631701,-150.0,8.137e-05,2]
[421026880,1776948631710,-150.0,8.211e-05,2]
[421026882,1776948631720,-300.0,8.218e-05,2]
[421026884,1776948631729,-280.0,8.219e-05,2]
[421026886,1776948631738,-141582.9333,8.25e-05,2]
[421026888,1776948631747,-150.0,8.285e-05,2]
[421026890,1776948631757,-264.05,8.294e-05,2]
[421026892,1776948631766,-2367.49,8.33e-05,2]
[421026893,1776948631774,-150.99,8.33e-05,2]
[421026895,1776948631784,-1552.31,8.33e-05,2]
[421026897,1776948631793,-492.0,8.334e-05,2]
[421026899,1776948631802,-151.0,8.347e-05,2]
[421026901,1776948631811,-151.0,8.347e-05,2]
[421026903,1776948631820,-151.0,8.347e-05,2]
[421026905,1776948631829,-150.0,8.349e-05,2]
[421026907,1776948631838,-396.08,8.387e-05,2]
[421026909,1776948631848,-178.71,8.428e-05,2]
[421026912,1776948631858,-192.09,8.428e-05,2]